bitfinex/quotes_BTCUSD_20251201
["timestamp","ask_amount","ask_price","bid_price","bid_amount"]
[1764602806859,2.01333003,85218.0,85212.0,0.01173543]
[1764602806860,0.01148003,85211.0,85210.0,0.23491278]
[1764602807059,2.07736003,85211.0,85210.0,0.0002]
[1764602807379,2.33153148,85211.0,85210.0,0.0002]
[1764602807787,2.34301151,85211.0,85210.0,0.0002]
[1764602808095,2.69045828,85211.0,85210.0,0.0002]
[1764602808436,2.34744677,85211.0,85210.0,0.0002]
[1764602808570,2.34204003,85211.0,85210.0,0.0002]
[1764602808946,2.4511945,85211.0,85210.0,0.0002]
[1764602809096,2.46267453,85211.0,85210.0,0.0002]
[1764602809615,2.43822003,85211.0,85210.0,0.0002]
[1764602810261,2.33209,85211.0,85210.0,0.0002]
[1764602810491,2.04351003,85211.0,85210.0,0.0002]
[1764602810696,2.01904003,85211.0,85210.0,0.0002]
[1764602810897,0.00756,85211.0,85210.0,0.0002]
[1764602811300,0.00756,85211.0,85210.0,0.23491423]
[1764602812326,2.01148003,85215.0,85214.0,0.23470321]
[1764602812749,2.01148003,85215.0,85214.0,0.23512584]
[1764602812971,0.01148003,85223.0,85222.0,0.24641523]
[1764602813184,0.01148003,85223.0,85219.0,0.01173447]
[1764602813185,0.04437003,85225.0,85219.0,0.01173447]
[1764602813392,0.04437003,85225.0,85211.0,0.24644705]
[1764602813393,0.01148003,85212.0,85211.0,0.24644705]
[1764602813596,0.01173433,85220.0,85216.0,0.24643258]
[1764602813597,0.01148003,85217.0,85216.0,0.24643258]
[1764602813803,2.01148003,85215.0,85214.0,0.01173516]
[1764602814004,2.01148003,85215.0,85214.0,0.001]
[1764602814209,2.01148003,85215.0,85214.0,0.23470321]
[1764602814417,0.10191,85215.0,85211.0,0.002]
[1764602814623,0.01148003,85213.0,85212.0,0.23470865]
[1764602814823,2.0,85213.0,85212.0,0.23470865]
[1764602815041,2.03598008,85213.0,85212.0,0.23470865]
[1764602815446,2.0,85212.0,85210.0,0.0002]
[1764602815649,2.0,85212.0,85211.0,0.23471148]
[1764602815852,0.33473309,85229.0,85222.0,0.2464149]
[1764602815853,2.0,85224.0,85222.0,0.2464149]
[1764602815997,0.00795187,85228.0,85222.0,0.24641522]
[1764602815998,2.01952038,85223.0,85222.0,0.24641522]
[1764602816611,0.01952038,85223.0,85222.0,0.24641522]
[1764602816775,0.01148003,85224.0,85223.0,0.23467843]
[1764602816977,2.01248003,85223.0,85222.0,0.01173405]
[1764602817217,2.11702596,85223.0,85211.0,0.24644453]
[1764602817393,2.0,85219.0,85218.0,0.23469164]
[1764602817606,2.09874,85219.0,85216.0,0.01173488]
[1764602817813,2.01148003,85217.0,85216.0,0.24643204]
[1764602818218,2.0,85217.0,85216.0,0.24643204]
[1764602818414,0.23467413,85225.0,85221.0,0.01173419]
[1764602818690,0.23467413,85225.0,85218.0,0.01173461]
[1764602818691,0.01148003,85220.0,85219.0,0.24242313]
[1764602819057,2.33448003,85227.0,85226.0,0.23467017]
[1764602819224,0.01148003,85227.0,85226.0,0.23467017]
[1764602819435,0.01148003,85227.0,85217.0,0.01173474]
[1764602819436,2.01173364,85225.0,85217.0,0.01173474]
[1764602819606,2.01173364,85225.0,85200.0,0.10032]
[1764602819607,0.23468669,85220.0,85219.0,0.00026006]
[1764602819788,2.23468669,85220.0,85219.0,0.00026006]
[1764602819993,2.01173405,85222.0,85219.0,0.00226006]
[1764602820187,2.07813003,85220.0,85219.0,0.00226006]
[1764602820494,2.07813003,85220.0,85219.0,0.00026006]
[1764602820495,2.14350527,85220.0,85219.0,0.00026006]
[1764602820687,2.6018412,85220.0,85219.0,0.00026006]
[1764602820887,2.46653006,85211.0,85182.0,0.04844]
[1764602821024,2.46653006,85211.0,85172.0,0.00756]
[1764602821025,2.47440006,85211.0,85188.0,0.01173874]
[1764602821250,2.47440006,85211.0,85171.0,0.40086926]
[1764602821251,2.23473902,85201.0,85178.0,0.01174012]
[1764602821449,2.23473902,85201.0,85192.0,0.01173819]
[1764602821450,2.55802902,85201.0,85192.0,0.01173819]
[1764602821676,2.61851905,85201.0,85192.0,0.01173819]
[1764602821873,2.61851905,85201.0,85193.0,0.24649682]
[1764602822051,2.42480832,85201.0,85191.0,0.01173832]
[1764602822374,2.61891068,85201.0,85183.0,0.23478752]
[1764602822576,2.61891068,85201.0,85180.0,0.01173984]
[1764602822901,2.61891068,85201.0,85174.0,0.01174067]
[1764602822902,2.39173166,85201.0,85174.0,0.01174067]
[1764602823050,2.39173166,85201.0,85176.0,0.01174039]
[1764602823250,2.39173166,85201.0,85178.0,0.2348009]
[1764602823450,2.39473166,85201.0,85177.0,0.01174025]
[1764602823673,2.39473166,85201.0,85177.0,0.24654355]
[1764602823877,2.39473166,85201.0,85174.0,0.01174067]
[1764602823878,2.38717166,85201.0,85171.0,0.01174108]
[1764602824050,2.39473166,85201.0,85178.0,0.23480111]
[1764602824292,2.39473166,85201.0,85184.0,0.01183929]
[1764602824474,2.62947068,85201.0,85189.0,0.0117386]
[1764602824672,2.62947068,85201.0,85186.0,0.01173901]
[1764602825047,2.05226918,85201.0,85200.0,0.23574178]
[1764602825218,2.01095163,85201.0,85200.0,0.001]
[1764602825419,2.04174347,85201.0,85200.0,0.001]
[1764602825662,2.06874166,85201.0,85200.0,0.001]
[1764602826028,2.00139163,85201.0,85200.0,0.001]
[1764602826211,0.323,85211.0,85210.0,0.01173571]
[1764602826415,2.34204003,85211.0,85210.0,0.0004103]
[1764602826614,2.0,85228.0,85223.0,0.01173392]
[1764602826965,2.01148003,85228.0,85227.0,0.23466717]
[1764602827094,2.01148003,85228.0,85227.0,0.2628274]
[1764602827300,2.0,85228.0,85227.0,0.23466717]
[1764602827945,0.03104,85241.0,85236.0,0.24637235]
[1764602828162,0.01173213,85236.0,85227.0,0.01173337]
[1764602828485,0.01173268,85232.0,85228.0,0.01173323]
[1764602828682,2.0,85235.0,85232.0,0.01173268]
[1764602828885,2.02464969,85234.0,85233.0,0.23465089]
[1764602829089,2.02464969,85234.0,85233.0,0.23476857]
[1764602829689,0.02464969,85234.0,85233.0,0.39664857]
[1764602829909,0.03013458,85263.0,85250.0,0.2346041]
[1764602829910,0.02464994,85259.0,85250.0,0.2346041]
[1764602830049,0.01840617,85263.0,85250.0,0.41853236]
[1764602830233,0.03509704,85273.0,85250.0,0.51785236]
[1764602830439,0.03104,85258.0,85250.0,0.04864]
[1764602830647,0.03104,85258.0,85237.0,0.09932]
[1764602830648,0.0427691,85258.0,85243.0,0.29499223]
[1764602830852,0.01148003,85247.0,85243.0,0.06037116]
[1764602831131,0.23464635,85235.0,85233.0,0.00311768]
[1764602831411,0.01173089,85245.0,85235.0,0.01173226]
[1764602831567,0.01173089,85245.0,85233.0,0.01485022]
[1764602831568,0.01173158,85240.0,85236.0,0.01259025]
[1764602831776,0.01148003,85234.0,85233.0,0.00311768]
[1764602832224,0.01148003,85234.0,85233.0,0.00011768]
[1764602832605,0.23463387,85240.0,85235.0,0.01173226]
[1764602832800,2.0117313,85242.0,85236.0,0.01173213]
[1764602832801,0.02460673,85241.0,85236.0,0.01173213]
[1764602833025,0.01148003,85243.0,85241.0,0.01173144]
[1764602833229,0.01148003,85243.0,85240.0,0.23463025]
[1764602833405,0.01301333,85251.0,85247.0,0.01173061]
[1764602833603,0.01301333,85251.0,85249.0,0.23460602]
[1764602833604,2.0,85250.0,85249.0,0.23460602]
[1764602833847,0.0015333,85251.0,85249.0,0.23460602]
[1764602834141,0.01148003,85247.0,85245.0,0.24634636]
[1764602834290,0.01301333,85251.0,85250.0,0.2346041]
[1764602834486,0.0015333,85251.0,85250.0,0.2971641]
[1764602834890,0.0015333,85251.0,85244.0,0.01173103]
[1764602834891,0.23462235,85244.0,85238.0,0.01173185]
[1764602835104,0.23462235,85244.0,85237.0,0.01173199]
[1764602835105,0.01173116,85243.0,85237.0,0.23463799]
[1764602835281,0.01148003,85238.0,85237.0,0.23463799]
[1764602835604,0.01173185,85238.0,85233.0,0.00011768]
[1764602835844,0.24612688,85235.0,85233.0,0.00011768]
[1764602836073,0.01148003,85234.0,85233.0,0.00011768]
[1764602836248,0.24612708,85235.0,85233.0,0.00011768]
[1764602836456,0.01148003,85234.0,85233.0,0.00011768]
[1764602836997,0.01148003,85234.0,85233.0,0.00611768]
[1764602837917,0.0495,85234.0,85233.0,0.00611768]
[1764602838137,0.0495,85234.0,85207.0,0.04864]
[1764602838138,2.55770872,85212.0,85200.0,0.001]
[1764602838322,2.60183996,85212.0,85211.0,0.00037757]
[1764602838522,2.65084996,85212.0,85211.0,0.00037757]
[1764602838748,2.76607592,85212.0,85211.0,0.00037757]
[1764602839085,2.65084996,85212.0,85211.0,0.00037757]
[1764602839295,2.63936993,85212.0,85211.0,0.00037757]
[1764602839509,2.65084996,85212.0,85211.0,0.00037757]
[1764602839797,2.41914124,85212.0,85211.0,0.00037757]
[1764602840773,0.41914124,85212.0,85211.0,0.00037757]
[1764602840978,2.41914124,85212.0,85211.0,0.00037757]
[1764602841823,0.01148003,85188.0,85187.0,0.23477651]
[1764602842023,0.01159743,85188.0,85187.0,0.23477651]
[1764602842437,0.01159743,85188.0,85186.0,0.01173901]
[1764602842438,0.0001174,85188.0,85186.0,0.24651759]
[1764602842696,0.0001174,85188.0,85184.0,0.0001]
[1764602842697,0.01148003,85187.0,85184.0,0.0001]
[1764602842859,2.01148003,85185.0,85184.0,0.0001]
[1764602844271,2.0011174,85188.0,85187.0,0.2347776]
[1764602844477,2.0001174,85188.0,85187.0,0.2347776]
[1764602844676,2.01159743,85188.0,85187.0,0.2347776]
[1764602844875,2.0,85187.0,85184.0,0.01283929]
[1764602845078,0.01148003,85185.0,85184.0,0.24662216]
[1764602845287,2.01159743,85188.0,85187.0,0.2347776]
[1764602845486,2.01159743,85188.0,85187.0,0.2367776]
[1764602845663,2.01159743,85188.0,85187.0,0.2347776]
[1764602846077,2.01159743,85188.0,85129.0,0.01174687]
[1764602846078,0.323,85172.0,85129.0,0.01174687]
[1764602846279,2.0,85153.0,85147.0,0.01174439]
[1764602846481,0.01148003,85163.0,85148.0,0.23488514]
[1764602846674,0.01174342,85154.0,85149.0,0.07281605]
[1764602846895,2.23487686,85151.0,85140.0,0.01174536]
[1764602847082,0.01148003,85147.0,85145.0,0.24663632]
[1764602847326,0.323,85160.0,85150.0,0.23487757]
[1764602847525,0.323,85160.0,85155.0,0.01174329]
[1764602847526,0.32311735,85160.0,85155.0,0.01174329]
[1764602847676,0.01174315,85156.0,85153.0,0.01174356]
[1764602848018,0.23486457,85156.0,85154.0,0.05049892]
[1764602848219,0.23486457,85156.0,85146.0,0.01174453]
[1764602848220,0.01148003,85149.0,85130.0,0.01174674]
[1764602848416,1.24895148,85150.0,85142.0,0.24664484]
[1764602848584,0.01148003,85148.0,85144.0,0.0117448]
[1764602848783,0.01148003,85148.0,85145.0,0.29714002]
[1764602848978,0.23485983,85158.0,85151.0,0.2466189]
[1764602849203,0.23485983,85158.0,85145.0,0.06224811]
[1764602849204,0.24634586,85155.0,85154.0,0.001]
[1764602849404,0.24634586,85155.0,85125.0,0.23494626]
[1764602849405,0.01174467,85145.0,85141.0,0.00756]
[1764602849743,2.0,85150.0,85144.0,0.24881964]
[1764602849863,0.23488644,85148.0,85144.0,0.0117448]
[1764602850059,0.01148003,85144.0,85143.0,0.01174494]
[1764602850304,0.23488876,85147.0,85141.0,0.23490445]
[1764602850305,0.01174439,85147.0,85144.0,0.0117448]
[1764602850521,0.01148003,85145.0,85144.0,0.24663917]
[1764602850784,0.01148003,85145.0,85144.0,0.24963917]
[1764602850984,0.01148003,85145.0,85144.0,0.24663917]
[1764602851196,0.24661637,85153.0,85148.0,0.24662823]
[1764602851561,0.01148003,85153.0,85152.0,0.0117437]
[1764602851763,2.0,85154.0,85150.0,0.24662288]
[1764602851957,2.0,85154.0,85152.0,0.23487275]
[1764602852159,2.0,85154.0,85151.0,0.24661966]
[1764602852296,2.0,85150.0,85147.0,0.01174439]
[1764602852669,0.001,85153.0,85152.0,0.2348741]
[1764602852839,0.001,85153.0,85151.0,0.23487686]
[1764602853626,0.001,85153.0,85150.0,0.01174398]
[1764602853830,2.0,85154.0,85150.0,0.01174398]
[1764602854010,0.001,85154.0,85152.0,0.23487324]
[1764602854204,0.00011735,85160.0,85153.0,0.06044]
[1764602854403,0.00011735,85160.0,85159.0,0.10786]
[1764602854808,0.00011735,85160.0,85159.0,0.2037]
[1764602855008,0.00011735,85160.0,85159.0,0.32648596]
[1764602855710,0.00011735,85160.0,85159.0,0.40275242]
[1764602856309,0.00011735,85160.0,85159.0,0.31892596]
[1764602856509,0.00011735,85160.0,85159.0,0.21126]
[1764602856932,0.00011735,85160.0,85159.0,0.2037]
[1764602857134,0.00011735,85160.0,85159.0,0.21326]
[1764602857348,0.00011735,85160.0,85159.0,0.21076]
[1764602857517,0.00011735,85160.0,85159.0,0.29202646]
[1764602857721,0.00011735,85160.0,85159.0,0.33098596]
[1764602858164,0.00011735,85160.0,85159.0,0.05192]
[1764602858367,0.00011735,85160.0,85158.0,0.23485755]
[1764602858840,0.00011735,85160.0,85159.0,0.005]
[1764602858841,0.00111735,85160.0,85159.0,0.005]
[1764602859258,0.01259738,85160.0,85159.0,0.005]
[1764602859454,0.00111735,85160.0,85159.0,0.005]
[1764602859662,0.00111735,85160.0,85159.0,0.16128]
[1764602859880,0.00011735,85160.0,85158.0,0.23485705]
[1764602860287,0.00011735,85160.0,85159.0,0.003]
[1764602860478,0.00011735,85160.0,85158.0,0.23485705]
[1764602860720,0.00011735,85160.0,85159.0,0.15628]
[1764602860924,0.00011735,85160.0,85159.0,0.15928]
[1764602861067,0.00011735,85160.0,85159.0,0.30697178]
[1764602861696,0.00011735,85160.0,85159.0,0.20813178]
[1764602861982,0.00011735,85160.0,85159.0,0.30797178]
[1764602862167,0.00011735,85160.0,85159.0,0.35539178]
[1764602862367,0.00011735,85160.0,85159.0,0.47061774]
[1764602862580,0.00011735,85160.0,85159.0,0.35539178]
[1764602863194,0.00011735,85160.0,85159.0,0.35139178]
[1764602863406,0.00011735,85160.0,85159.0,0.35539178]
[1764602864245,0.00011735,85160.0,85159.0,0.19911178]
[1764602864454,0.00011735,85160.0,85159.0,0.15169178]
[1764602864661,2.04961735,85160.0,85159.0,0.38654658]
[1764602864873,2.06109738,85160.0,85159.0,0.15169178]
[1764602865204,2.01208738,85160.0,85159.0,0.15169178]
[1764602865562,2.03664057,85160.0,85159.0,0.15169178]
[1764602865691,2.08565057,85160.0,85159.0,0.15169178]
[1764602865940,2.08565057,85160.0,85159.0,0.00569178]
[1764602865941,2.40865057,85160.0,85159.0,0.00569178]
[1764602866139,2.0,85133.0,85132.0,0.23492812]
[1764602866395,2.0,85133.0,85126.0,0.01174729]
[1764602866616,2.0,85133.0,85125.0,0.01174743]
[1764602866617,0.01148003,85126.0,85125.0,0.01174743]
[1764602866754,2.0,85126.0,85121.0,0.02471367]
[1764602866952,2.0,85133.0,85128.0,0.01174701]
[1764602867182,2.0,85128.0,85121.0,0.01296569]
[1764602867329,0.01148003,85122.0,85121.0,0.24792533]
[1764602867531,0.01148003,85122.0,85121.0,0.01296569]
[1764602867752,2.01148003,85122.0,85121.0,0.24792533]
[1764602867954,2.03704496,85122.0,85121.0,0.24792533]
[1764602868181,2.39846372,85122.0,85121.0,0.01296569]
[1764602868394,2.34758621,85122.0,85121.0,0.01296569]
[1764602868550,2.03606624,85122.0,85121.0,0.24792533]
[1764602868751,0.02458621,85122.0,85121.0,0.24792533]
[1764602868975,2.01148003,85122.0,85121.0,0.01296569]
[1764602869180,0.05377003,85118.0,85116.0,0.23497146]
[1764602869340,2.01148003,85117.0,85116.0,0.23497146]
[1764602869579,0.002,85128.0,85127.0,0.24669023]
[1764602869580,2.0,85128.0,85127.0,0.24669023]
[1764602869784,2.0,85129.0,85127.0,0.24669023]
[1764602869983,2.0,85129.0,85128.0,0.01730824]
[1764602870262,2.00011729,85133.0,85132.0,0.23492928]
[1764602870401,2.0246995,85133.0,85132.0,0.23492928]
[1764602870611,0.00011729,85133.0,85132.0,0.39120928]
[1764602870840,0.00011729,85133.0,85132.0,0.30292928]
[1764602871217,0.00011729,85133.0,85132.0,0.30192928]
[1764602871417,0.00011729,85133.0,85132.0,0.40480329]
[1764602871602,0.00011729,85133.0,85132.0,0.39812226]
[1764602871803,0.00011729,85133.0,85132.0,0.50152226]
[1764602872006,0.00011729,85133.0,85132.0,0.40568226]
[1764602872209,0.00011729,85133.0,85132.0,0.23480825]
[1764602872445,0.01159732,85133.0,85132.0,0.00087897]
[1764602872904,2.01408732,85133.0,85132.0,0.00087897]
[1764602873161,2.26012502,85133.0,85132.0,0.00087897]
[1764602873412,2.32061505,85133.0,85132.0,0.00287897]
[1764602873618,2.51698808,85133.0,85132.0,0.00287897]
[1764602873796,2.51698808,85133.0,85132.0,0.00087897]
[1764602873797,2.51598808,85133.0,85132.0,0.00087897]
[1764602874096,2.51698808,85133.0,85132.0,0.00287897]
[1764602874318,2.42048407,85133.0,85132.0,0.00087897]
[1764602874486,2.13654755,85133.0,85132.0,0.00087897]
[1764602874891,1.81354755,85133.0,85132.0,0.00087897]
[1764602875474,1.81403755,85133.0,85132.0,0.00087897]
[1764602875676,1.81554755,85133.0,85132.0,0.00187897]
[1764602876082,2.13854755,85133.0,85132.0,0.00187897]
[1764602876425,1.86455755,85133.0,85132.0,0.00187897]
[1764602876655,1.81554755,85133.0,85132.0,0.23680825]
[1764602876808,0.02659121,85133.0,85132.0,0.23680825]
[1764602876994,0.002,85133.0,85132.0,0.23680825]
[1764602877386,0.60609044,85142.0,85135.0,0.01174605]
[1764602877585,0.323,85148.0,85135.0,0.01174605]
[1764602877586,0.03683,85158.0,85157.0,0.23486031]
[1764602877785,2.0,85157.0,85155.0,0.01174329]
[1764602877980,2.0245845,85156.0,85152.0,0.0117437]
[1764602878225,0.03683,85158.0,85152.0,0.24661715]
[1764602878226,0.01148003,85153.0,85152.0,0.24661715]
[1764602878435,0.01148003,85153.0,85149.0,0.01174411]
[1764602878436,2.0,85152.0,85149.0,0.01174411]
[1764602878611,0.0245845,85151.0,85149.0,0.23488175]
[1764602878809,0.01148003,85150.0,85149.0,0.23488175]
[1764602879069,0.0245845,85157.0,85156.0,0.23486307]
[1764602879274,2.01148003,85155.0,85154.0,0.24661057]
[1764602879397,2.01148003,85155.0,85152.0,0.23687153]
[1764602879398,0.01148003,85153.0,85152.0,0.24861523]
[1764602879600,2.03606453,85153.0,85152.0,0.24661523]
[1764602880218,2.0245845,85153.0,85152.0,0.24661523]
[1764602880458,2.0,85173.0,85172.0,0.23381895]
[1764602880691,2.01148003,85172.0,85171.0,0.01174108]
[1764602880992,0.01173943,85183.0,85181.0,0.0117397]
[1764602880993,2.0,85183.0,85181.0,0.0117397]
[1764602881105,2.02459395,85182.0,85181.0,0.24653336]
[1764602881325,0.02459395,85182.0,85181.0,0.24653336]
[1764602881510,2.062,85184.0,85183.0,0.23478863]
[1764602881733,2.0621177,85184.0,85183.0,0.23478863]
[1764602882157,2.0621177,85184.0,85183.0,0.23378863]
[1764602882371,2.0621177,85184.0,85178.0,0.01174012]
[1764602882372,2.01173998,85179.0,85168.0,0.01174149]
[1764602882581,2.0,85180.0,85179.0,0.2347985]
[1764602882802,0.23481104,85175.0,85159.0,0.01174274]
[1764602883014,2.0,85171.0,85166.0,0.01174177]
[1764602883225,2.0,85167.0,85166.0,0.24657481]
[1764602883410,2.0,85167.0,85162.0,0.23484465]
[1764602883411,2.0,85166.0,85162.0,0.01174232]
[1764602883616,2.0,85166.0,85165.0,0.23483825]
[1764602883909,2.01174094,85172.0,85169.0,0.01174136]
[1764602884113,2.0,85170.0,85168.0,0.23482887]
[1764602884258,0.02458009,85169.0,85168.0,0.23482887]
[1764602884464,0.01148003,85181.0,85178.0,0.24654253]
[1764602884712,0.0621177,85184.0,85178.0,0.24654253]
[1764602884713,0.0621177,85184.0,85183.0,0.23478863]
[1764602884908,0.0621177,85184.0,85183.0,0.23378863]
[1764602885228,0.07359773,85184.0,85183.0,0.23378863]
[1764602885381,0.0621177,85184.0,85182.0,0.23479138]
[1764602885579,0.0621177,85184.0,85183.0,0.23478863]
[1764602885990,0.0631177,85184.0,85183.0,0.004]
[1764602886196,0.0621177,85184.0,85182.0,0.2347899]
[1764602886717,0.0631177,85184.0,85183.0,0.15424]
[1764602886879,0.0631177,85184.0,85182.0,0.23778955]
[1764602887715,0.0631177,85184.0,85169.0,0.01174136]
[1764602887716,0.01148003,85181.0,85169.0,0.01174136]
[1764602887924,0.01148003,85180.0,85178.0,0.01174012]
[1764602888152,2.0,85178.0,85169.0,0.01174136]
[1764602888562,2.01148003,85173.0,85172.0,0.01174094]
[1764602888805,2.01148003,85173.0,85166.0,0.00756]
[1764602888806,2.0,85165.0,85162.0,0.01174232]
[1764602889012,2.60609044,85170.0,85169.0,0.01174136]
[1764602889230,2.01148003,85170.0,85169.0,0.01174136]
[1764602889443,2.01197003,85170.0,85169.0,0.004]
[1764602889598,2.01197003,85170.0,85168.0,0.23482867]
[1764602889801,2.01148003,85169.0,85168.0,0.23482867]
[1764602890368,0.01148003,85173.0,85168.0,0.23482867]
[1764602890599,2.0,85177.0,85175.0,0.01174053]
[1764602890847,0.03602924,85176.0,85175.0,0.24655121]
[1764602891078,0.01148003,85168.0,85166.0,0.01174177]
[1764602891304,0.01174094,85172.0,85163.0,0.01174218]
[1764602891548,0.001,85165.0,85164.0,0.23483525]
[1764602892180,0.01148003,85170.0,85169.0,0.24656785]
[1764602892424,2.0,85170.0,85169.0,0.24656785]
[1764602892588,0.323,85185.0,85182.0,0.23479138]
[1764602892589,2.0,85183.0,85182.0,0.23479138]
[1764602892745,2.02455603,85183.0,85182.0,0.23479138]
[1764602892943,2.02455603,85183.0,85180.0,0.24653482]
[1764602892944,2.0,85182.0,85180.0,0.24653482]
[1764602893151,0.0621177,85184.0,85182.0,0.23479138]
[1764602893152,0.07359773,85184.0,85182.0,0.23479138]
[1764602893353,0.07359773,85184.0,85181.0,0.24653251]
[1764602893354,0.01148003,85182.0,85181.0,0.24653251]
[1764602893562,2.01148003,85182.0,85181.0,0.24553251]
[1764602894360,0.0621177,85184.0,85183.0,0.23478863]
[1764602896156,0.0631177,85184.0,85183.0,0.24834863]
[1764602896518,0.0631177,85184.0,85183.0,0.24078863]
[1764602896719,0.0631177,85184.0,85183.0,0.24834863]
[1764602897306,0.0631177,85184.0,85183.0,0.40258863]
[1764602897509,0.0631177,85184.0,85183.0,0.51781459]
[1764602897738,0.0631177,85184.0,85183.0,0.40258863]
[1764602898823,0.0631177,85184.0,85183.0,0.39502863]
[1764602899023,0.0631177,85184.0,85183.0,0.40254863]
[1764602899901,0.0631177,85184.0,85183.0,0.39502863]
[1764602900093,0.0631177,85184.0,85183.0,0.40254863]
[1764602900322,0.0631177,85184.0,85183.0,0.006]
[1764602900832,0.0631177,85184.0,85183.0,0.39502863]
[1764602901008,0.0631177,85184.0,85183.0,0.40254863]
[1764602902690,0.0631177,85184.0,85183.0,0.24078863]
[1764602902894,0.0631177,85184.0,85183.0,0.24830863]
[1764602903449,0.0631177,85184.0,85183.0,0.40254863]
[1764602903699,0.0631177,85184.0,85183.0,0.39502863]
[1764602903871,0.0631177,85184.0,85183.0,0.40254863]
[1764602905702,0.0631177,85184.0,85183.0,0.30838863]
[1764602905864,0.0631177,85184.0,85183.0,0.24078863]
[1764602906065,0.0631177,85184.0,85183.0,0.24830863]
[1764602906480,0.0631177,85184.0,85183.0,0.40542863]
[1764602906783,0.00752,85205.0,85183.0,0.40542863]
[1764602906784,0.02461852,85207.0,85204.0,0.01173653]
[1764602906962,0.02461852,85207.0,85192.0,0.01173819]
[1764602906963,2.0,85226.0,85225.0,0.23467292]
[1764602907167,2.0,85226.0,85218.0,0.01173461]
[1764602907168,2.23467328,85225.0,85212.0,0.00752]
[1764602907447,2.23467328,85225.0,85206.0,0.05676626]
[1764602907448,2.0,85217.0,85208.0,0.01173598]
[1764602907653,2.0,85217.0,85199.0,0.04503]
[1764602907654,2.0,85211.0,85200.0,0.01173708]
[1764602907882,0.61782505,85218.0,85209.0,0.01173584]
[1764602907883,0.02465376,85210.0,85209.0,0.01173584]
[1764602908087,2.0,85213.0,85212.0,0.23470872]
[1764602908218,0.01148003,85205.0,85204.0,0.01173653]
[1764602908429,0.01148003,85205.0,85204.0,0.23473076]
[1764602908898,0.02465376,85213.0,85204.0,0.06745891]
[1764602909170,2.01148003,85209.0,85208.0,0.23471974]
[1764602909332,2.03613379,85209.0,85208.0,0.23471974]
[1764602909529,0.02465376,85209.0,85208.0,0.23471974]
[1764602909729,2.03069689,85216.0,85215.0,0.23470046]
[1764602910072,0.02465376,85216.0,85215.0,0.23470046]
[1764602910236,0.01148003,85216.0,85215.0,0.24643548]
[1764602910432,0.02465376,85222.0,85221.0,0.23468393]
[1764602910656,2.0,85221.0,85219.0,0.01173447]
[1764602910859,2.0,85221.0,85218.0,0.23469115]
[1764602910860,2.0,85219.0,85218.0,0.2346922]
[1764602911062,2.02465376,85219.0,85218.0,0.2346922]
[1764602911324,2.0,85225.0,85224.0,0.23467567]
[1764602911525,0.00011764,85226.0,85225.0,0.23467292]
[1764602912272,0.01148003,85218.0,85206.0,0.01173626]
[1764602912482,0.01148003,85218.0,85191.0,0.09518]
[1764602912483,2.01173529,85213.0,85205.0,0.0117364]
[1764602912682,0.01173516,85214.0,85205.0,0.0117364]
[1764602912683,2.0,85215.0,85212.0,0.01173543]
[1764602912821,2.0,85215.0,85211.0,0.23471148]
[1764602912822,2.0,85212.0,85211.0,0.23471148]
[1764602913020,2.03617653,85212.0,85211.0,0.23471148]
[1764602913474,2.01216284,85212.0,85211.0,0.23471148]
[1764602913751,0.00068281,85212.0,85211.0,0.33329306]
[1764602914067,0.00068281,85212.0,85211.0,0.23471148]
[1764602914869,0.00068281,85212.0,85211.0,0.23771148]
[1764602915453,0.00068281,85212.0,85211.0,0.24523148]
[1764602915699,0.00068281,85212.0,85211.0,0.50074506]
[1764602916567,0.00068281,85212.0,85211.0,0.40111148]
[1764602917372,0.00068281,85212.0,85211.0,0.39359148]
[1764602917578,0.00068281,85212.0,85211.0,0.39811148]
[1764602917761,0.00168281,85212.0,85211.0,0.40811148]
[1764602918147,0.00168281,85212.0,85211.0,0.40059148]
[1764602918262,0.00168281,85212.0,85211.0,0.31293148]
[1764602918468,0.00168281,85212.0,85211.0,0.01]
[1764602918469,0.23690153,85212.0,85211.0,0.01]
[1764602918818,2.01316284,85212.0,85211.0,0.01]
[1764602919021,2.03784916,85212.0,85211.0,0.01]
[1764602919204,2.03784916,85212.0,85210.0,0.23471241]
[1764602919205,2.0,85211.0,85210.0,0.23471359]
[1764602919408,2.0,85211.0,85209.0,0.01173584]
[1764602919409,2.01148003,85210.0,85209.0,0.01173584]
[1764602919631,2.03616635,85210.0,85206.0,0.01173626]
[1764602919836,0.02321615,85207.0,85200.0,0.01173708]
[1764602920090,0.02321615,85207.0,85198.0,0.01173736]
[1764602920091,0.01173653,85204.0,85198.0,0.01173736]
[1764602920403,0.01173653,85204.0,85195.0,0.01173777]
[1764602920404,2.0,85199.0,85195.0,0.01173777]
[1764602920701,2.0,85196.0,85195.0,0.24649267]
[1764602920842,0.02468382,85196.0,85195.0,0.24649267]
[1764602921044,2.0,85196.0,85195.0,0.24649267]
[1764602921297,0.02468382,85196.0,85195.0,0.34391808]
[1764602921477,0.27716797,85203.0,85197.0,0.23475004]
[1764602921478,0.02468382,85202.0,85197.0,0.23475004]
[1764602921638,2.0,85201.0,85200.0,0.23473957]
[1764602921841,2.02468382,85201.0,85200.0,0.23473957]
[1764602922039,0.02468382,85201.0,85200.0,0.23473957]
[1764602922243,8.746e-05,85202.0,85200.0,0.23473957]
[1764602922446,2.0,85201.0,85199.0,0.24647872]
[1764602922658,8.746e-05,85202.0,85199.0,0.24647872]
[1764602922659,8.746e-05,85202.0,85200.0,0.09518]
[1764602922899,8.746e-05,85202.0,85201.0,0.29543902]
[1764602923082,8.746e-05,85202.0,85201.0,0.39061902]
[1764602923277,8.746e-05,85202.0,85201.0,0.29543902]
[1764602923510,8.746e-05,85202.0,85201.0,0.30295902]
[1764602923709,8.746e-05,85202.0,85201.0,0.23473902]
[1764602923921,8.746e-05,85202.0,85200.0,0.002]
[1764602923922,0.01148003,85201.0,85200.0,0.002]
[1764602924261,0.01148003,85201.0,85194.0,0.24649408]
[1764602924262,2.0,85199.0,85197.0,0.24648579]
[1764602924398,0.01148003,85197.0,85196.0,0.24648981]
[1764602924595,0.01148003,85197.0,85186.0,0.01173901]
[1764602924596,0.01173846,85190.0,85186.0,0.01173901]
[1764602924824,0.01148003,85192.0,85190.0,0.23476933]
[1764602925021,2.0,85191.0,85190.0,0.24650779]
[1764602925222,2.0,85193.0,85191.0,0.24650364]
[1764602925429,2.03618232,85192.0,85191.0,0.24650364]
[1764602925600,1.82586886,85192.0,85191.0,0.24650364]
[1764602925803,0.01148003,85196.0,85195.0,0.23475516]
[1764602926023,2.01148003,85196.0,85195.0,0.23475516]
[1764602926223,0.01148003,85196.0,85195.0,0.23475516]
[1764602926434,2.01148003,85196.0,85193.0,0.01173805]
[1764602926648,2.0,85194.0,85191.0,0.24650286]
[1764602926869,2.0,85194.0,85190.0,0.002]